[Event "Limburg Open 2022"]
[Site "Maastricht"]
[Date "2022.06.07"]
[Round "7.7"]
[White "Gurevich, Mikhail"]
[Black "Van Cappellen, Jonas"]
[Result "1-0"]
[ECO "A28"]
[WhiteElo "2576"]
[BlackElo "2244"]
[PlyCount "83"]
[EventDate "2022.06.03"]
[EventType "swiss"]
[EventRounds "7"]
[EventCountry "NED"]
[SourceTitle "Limburg Open"]
[Source "Limburg Open"]
[SourceDate "2022.06.06"]
[SourceVersion "7"]
[SourceVersionDate "2022.06.06"]
[SourceQuality "1"]
[TimeControl "7200+15"]

1. c4 {[%emt 0:00:07]} e5 {[%emt 0:00:09]} 2. Nc3 {[%emt 0:00:07]} Nf6 {
[%emt 0:00:08]} 3. Nf3 {[%emt 0:00:05]} Nc6 {[%emt 0:00:08]} 4. a3 {[%emt 0:00:
02]} d5 {[%emt 0:03:49]} 5. cxd5 {[%emt 0:00:47]} Nxd5 {[%emt 0:00:08]} 6. Qc2
{[%emt 0:00:03]} Be7 {[%emt 0:05:56]} 7. e3 {[%emt 0:00:49]} Nxc3 {[%emt 0:06:
37]} 8. bxc3 {[%emt 0:02:01]} O-O {[%emt 0:00:20]} 9. d4 {[%emt 0:00:05]} Bf6 {
[%emt 0:03:11]} 10. Bd3 {[%emt 0:04:07]} h6 {[%emt 0:07:25]} 11. O-O {[%emt 0:
03:49]} Re8 {[%emt 0:02:12]} 12. Rb1 {[%emt 0:04:53]} g6 {[%emt 0:03:05]} 13.
Nd2 {[%emt 0:08:30]} Bg7 {[%emt 0:01:37]} 14. a4 {[%emt 0:00:18]} b6 {[%emt 0:
11:08]} 15. Ba3 {[%emt 0:02:43]} Bb7 {[%emt 0:08:11]} 16. Rfd1 {[%emt 0:07:05]}
Qd7 {[%emt 0:08:12]} 17. Bb5 {[%emt 0:03:50]} a6 {[%emt 0:08:23]} 18. Bf1 {
[%emt 0:00:45]} Rad8 {[%emt 0:01:17]} 19. Nf3 {[%emt 0:01:33]} Qe6 {[%emt 0:06:
44]} 20. Bb2 {[%emt 0:02:03]} Re7 {[%emt 0:11:27]} 21. Ba1 {[%emt 0:12:51]}
Red7 {[%emt 0:04:01]} 22. Re1 {[%emt 0:01:17]} Qd6 {[%emt 0:06:15]} 23. Nd2 {
[%emt 0:08:01]} Na5 {[%emt 0:01:20]} 24. Nf3 {[%emt 0:04:08]} Nc6 {[%emt 0:01:
16]} 25. Qc1 {[%emt 0:00:47]} Kh7 {[%emt 0:01:28]} 26. c4 {[%emt 0:03:08]} exd4
{[%emt 0:00:30]} 27. c5 {[%emt 0:00:11]} Qd5 {[%emt 0:01:00]} 28. exd4 {
[%emt 0:00:30]} Na5 {[%emt 0:09:19]} 29. Bc3 {[%emt 0:07:36]} Bc6 {[%emt 0:04:
55]} 30. cxb6 {[%emt 0:00:37]} cxb6 {[%emt 0:00:07]} 31. Rxb6 {[%emt 0:00:11]}
Nc4 {[%emt 0:01:56]} 32. Rxa6 {[%emt 0:04:22]} Bb7 {[%emt 0:00:30]} 33. Ra7 {
[%emt 0:00:19]} Rc8 {[%emt 0:00:25]} 34. Qf4 {[%emt 0:00:12]} Nd6 {[%emt 0:02:
20]} 35. Bb4 {[%emt 0:02:01]} Nf5 {[%emt 0:00:46]} 36. Ra5 {[%emt 0:03:57]} Qb3
{[%emt 0:00:18]} 37. Rxf5 {[%emt 0:06:54]} Qxb4 {[%emt 0:00:17]} 38. Rxf7 {
[%emt 0:03:49]} Rxf7 {[%emt 0:00:41]} 39. Qxf7 {[%emt 0:00:12]} Bxf3 {[%emt 0:
01:04]} 40. Re7 {[%emt 0:00:07]} Qxd4 {[%emt 0:00:05]} 41. Qxf3 {[%emt 0:06:27]
} Qxa4 {[%emt 0:00:05]} 42. Rxg7+ {[%emt 0:00:10]} 1-0

[Event "Limburg Open 2022"]
[Site "Maastricht"]
[Date "2022.06.07"]
[Round "7.8"]
[White "Bentel, Robin"]
[Black "Ernst, Sipke"]
[Result "0-1"]
[ECO "D24"]
[WhiteElo "2225"]
[BlackElo "2538"]
[PlyCount "64"]
[EventDate "2022.06.03"]
[EventType "swiss"]
[EventRounds "7"]
[EventCountry "NED"]
[SourceTitle "Limburg Open"]
[Source "Limburg Open"]
[SourceDate "2022.06.06"]
[SourceVersion "7"]
[SourceVersionDate "2022.06.06"]
[SourceQuality "1"]
[TimeControl "7200+15"]

1. d4 {[%emt 0:00:07]} Nf6 {[%emt 0:00:11]} 2. c4 {[%emt 0:00:18]} e6 {[%emt 0:
00:38]} 3. Nf3 {[%emt 0:00:21]} d5 {[%emt 0:00:42]} 4. Nc3 {[%emt 0:00:27]}
dxc4 {[%emt 0:01:55]} 5. e4 {[%emt 0:01:30]} b5 {[%emt 0:00:05]} 6. e5 {
[%emt 0:00:53]} Nd5 {[%emt 0:00:05]} 7. Nxb5 {[%emt 0:00:20]} Nb6 {[%emt 0:00:
06]} 8. Be2 {[%emt 0:01:17]} Nc6 {[%emt 0:00:15]} 9. O-O {[%emt 0:00:41]} Bb7 {
[%emt 0:01:36]} 10. Be3 {[%emt 0:00:42]} Qd7 {[%emt 0:01:44]} 11. Nc3 {[%emt 0:
06:15]} Be7 {[%emt 0:02:33]} 12. Qd2 {[%emt 0:03:36]} O-O {[%emt 0:03:37]} 13.
Rad1 {[%emt 0:04:39]} Rfd8 {[%emt 0:00:17]} 14. h4 {[%emt 0:00:45]} Nb4 {
[%emt 0:05:59]} 15. Ng5 {[%emt 0:10:19]} Rab8 {[%emt 0:05:00]} 16. a3 {[%emt 0:
03:06]} N4d5 {[%emt 0:01:10]} 17. Qc2 {[%emt 0:00:58]} g6 {[%emt 0:01:15]} 18.
Bc1 {[%emt 0:06:08]} Nxc3 {[%emt 0:03:35]} 19. Qxc3 {[%emt 0:01:35]} Bd5 {
[%emt 0:15:57]} 20. h5 {[%emt 0:11:15]} h6 {[%emt 0:01:24]} 21. Nh3 {[%emt 0:
01:21]} g5 {[%emt 0:01:26]} 22. f4 {[%emt 0:05:02]} g4 {[%emt 0:00:04]} 23.
Bxg4 {[%emt 0:01:40]} Na4 {[%emt 0:08:39]} 24. Qg3 {[%emt 0:00:14]} Rb3 {
[%emt 0:00:42]} 25. Be3 {[%emt 0:06:04]} Kh8 {[%emt 0:02:03]} 26. f5 {[%emt 0:
02:00]} exf5 {[%emt 0:10:41]} 27. Bxf5 {[%emt 0:08:01]} Qc6 {[%emt 0:01:14]}
28. e6 {[%emt 0:19:19]} Rg8 {[%emt 0:11:42]} 29. Bg6 {[%emt 0:04:05]} Qxe6 {
[%emt 0:04:41]} 30. Rxf7 {[%emt 0:03:13]} Qxf7 {[%emt 0:02:09]} 31. Bxf7 {
[%emt 0:02:09]} Rxg3 {[%emt 0:00:07]} 32. Bxd5 {[%emt 0:00:06]} Rbxe3 {[%emt 0:
00:37]} 0-1

[Event "Limburg Open 2022"]
[Site "Maastricht"]
[Date "2022.06.07"]
[Round "7.9"]
[White "Gupta, Sankalp"]
[Black "Strating, Sybolt"]
[Result "1-0"]
[ECO "B17"]
[WhiteElo "2505"]
[BlackElo "2291"]
[PlyCount "55"]
[EventDate "2022.06.03"]
[EventType "swiss"]
[EventRounds "7"]
[EventCountry "NED"]
[SourceTitle "Limburg Open"]
[Source "Limburg Open"]
[SourceDate "2022.06.06"]
[SourceVersion "7"]
[SourceVersionDate "2022.06.06"]
[SourceQuality "1"]
[TimeControl "7200+15"]

1. e4 {[%emt 0:05:46]} c6 {[%emt 0:00:06]} 2. d4 {[%emt 0:00:12]} d5 {[%emt 0:
00:06]} 3. Nd2 {[%emt 0:00:12]} dxe4 {[%emt 0:00:14]} 4. Nxe4 {[%emt 0:00:02]}
Nd7 {[%emt 0:00:12]} 5. Ng5 {[%emt 0:00:11]} Ngf6 {[%emt 0:00:18]} 6. Bd3 {
[%emt 0:00:11]} e6 {[%emt 0:00:51]} 7. N1f3 {[%emt 0:00:06]} Bd6 {[%emt 0:00:
41]} 8. Qe2 {[%emt 0:00:06]} h6 {[%emt 0:00:45]} 9. Ne4 {[%emt 0:01:53]} Nxe4 {
[%emt 0:00:09]} 10. Qxe4 {[%emt 0:00:05]} Qc7 {[%emt 0:00:16]} 11. O-O {
[%emt 0:01:13]} b6 {[%emt 0:00:47]} 12. Qg4 {[%emt 0:02:30]} Kf8 {[%emt 0:00:
23]} 13. b3 {[%emt 0:02:21]} g5 {[%emt 0:10:43]} 14. Qh3 {[%emt 0:07:41]} Kg7 {
[%emt 0:11:39]} 15. Bb2 {[%emt 0:01:20]} Nf6 {[%emt 0:00:28]} 16. Ne5 {[%emt 0:
00:48]} Nd5 {[%emt 0:11:13]} 17. g3 {[%emt 0:07:16]} Bxe5 {[%emt 0:19:33]} 18.
dxe5 {[%emt 0:06:29]} Bb7 {[%emt 0:00:45]} 19. f4 {[%emt 0:27:43]} gxf4 {
[%emt 0:11:28]} 20. Be4 {[%emt 0:00:07]} fxg3 {[%emt 0:01:25]} 21. c4 {[%emt 0:
10:15]} gxh2+ {[%emt 0:06:04]} 22. Kxh2 {[%emt 0:00:21]} f5 {[%emt 0:08:25]}
23. Rg1+ {[%emt 0:03:37]} Kf8 {[%emt 0:00:15]} 24. cxd5 {[%emt 0:00:28]} cxd5 {
[%emt 0:01:04]} 25. Ba3+ {[%emt 0:02:09]} Ke8 {[%emt 0:00:54]} 26. Qh5+ {
[%emt 0:00:13]} Qf7 {[%emt 0:00:32]} 27. Bf3 {[%emt 0:00:10]} Rh7 {[%emt 0:05:
57]} 28. Qxf7+ {[%emt 0:00:26]} 1-0

[Event "Limburg Open 2022"]
[Site "Maastricht"]
[Date "2022.06.07"]
[Round "7.10"]
[White "De Jong, Tom"]
[Black "Roebers, Eline"]
[Result "1/2-1/2"]
[ECO "B22"]
[WhiteElo "2163"]
[BlackElo "2378"]
[PlyCount "51"]
[EventDate "2022.06.03"]
[EventType "swiss"]
[EventRounds "7"]
[EventCountry "NED"]
[SourceTitle "Limburg Open"]
[Source "Limburg Open"]
[SourceDate "2022.06.06"]
[SourceVersion "7"]
[SourceVersionDate "2022.06.06"]
[SourceQuality "1"]
[TimeControl "7200+15"]

1. e4 {[%emt 0:00:04]} c5 {[%emt 0:00:03]} 2. c3 {[%emt 0:00:05]} Nf6 {[%emt 0:
00:03]} 3. e5 {[%emt 0:00:04]} Nd5 {[%emt 0:00:02]} 4. Nf3 {[%emt 0:00:07]} e6
{[%emt 0:00:06]} 5. d4 {[%emt 0:02:56]} cxd4 {[%emt 0:00:04]} 6. cxd4 {[%emt 0:
00:12]} d6 {[%emt 0:00:02]} 7. Bc4 {[%emt 0:04:37]} Be7 {[%emt 0:00:41]} 8. O-O
{[%emt 0:00:07]} O-O {[%emt 0:00:03]} 9. Qe2 {[%emt 0:01:46]} b6 {[%emt 0:00:
26]} 10. Rd1 {[%emt 0:01:54]} Bb7 {[%emt 0:00:45]} 11. Bxd5 {[%emt 0:00:32]}
exd5 {[%emt 0:02:45]} 12. Nc3 {[%emt 0:01:45]} Na6 {[%emt 0:02:56]} 13. Bf4 {
[%emt 0:11:38]} dxe5 {[%emt 0:05:54]} 14. Bxe5 {[%emt 0:13:55]} Nc7 {[%emt 0:
07:17]} 15. Rac1 {[%emt 0:07:20]} Ne6 {[%emt 0:03:20]} 16. h3 {[%emt 0:04:45]}
Re8 {[%emt 0:01:06]} 17. Qd3 {[%emt 0:00:20]} a6 {[%emt 0:03:32]} 18. Na4 {
[%emt 0:03:36]} f6 {[%emt 0:16:36]} 19. Bg3 {[%emt 0:00:30]} Bd6 {[%emt 0:03:
51]} 20. Bxd6 {[%emt 0:07:58]} Qxd6 {[%emt 0:00:08]} 21. Qa3 {[%emt 0:02:42]}
Rad8 {[%emt 0:03:35]} 22. Qxd6 {[%emt 0:05:22]} Rxd6 {[%emt 0:00:04]} 23. Rc3 {
[%emt 0:11:42]} Rc8 {[%emt 0:14:01]} 24. Rdc1 {[%emt 0:04:41]} Rc4 {[%emt 0:00:
57]} 25. b3 {[%emt 0:04:51]} Rxc3 {[%emt 0:00:06]} 26. Rxc3 {[%emt 0:00:13]}
1/2-1/2

[Event "Limburg Open 2022"]
[Site "Maastricht"]
[Date "2022.06.07"]
[Round "7.11"]
[White "Keetman, Maaike"]
[Black "Lenaerts, Lennert"]
[Result "0-1"]
[ECO "C77"]
[WhiteElo "2144"]
[BlackElo "2353"]
[PlyCount "66"]
[EventDate "2022.06.03"]
[EventType "swiss"]
[EventRounds "7"]
[EventCountry "NED"]
[SourceTitle "Limburg Open"]
[Source "Limburg Open"]
[SourceDate "2022.06.06"]
[SourceVersion "7"]
[SourceVersionDate "2022.06.06"]
[SourceQuality "1"]
[TimeControl "7200+15"]

1. e4 {[%emt 0:00:03]} e5 {[%emt 0:01:27]} 2. Nf3 {[%emt 0:00:09]} Nc6 {
[%emt 0:00:04]} 3. Bb5 {[%emt 0:00:07]} a6 {[%emt 0:00:04]} 4. Ba4 {[%emt 0:00:
05]} Nf6 {[%emt 0:00:03]} 5. d3 {[%emt 0:00:06]} b5 {[%emt 0:02:46]} 6. Bb3 {
[%emt 0:00:05]} Bc5 {[%emt 0:00:05]} 7. c3 {[%emt 0:04:11]} d6 {[%emt 0:05:14]}
8. Bg5 {[%emt 0:01:09]} h6 {[%emt 0:00:39]} 9. Bh4 {[%emt 0:00:51]} Be6 {
[%emt 0:06:03]} 10. a4 {[%emt 0:21:19]} g5 {[%emt 0:12:10]} 11. Bxe6 {[%emt 0:
03:04]} fxe6 {[%emt 0:00:23]} 12. Bg3 {[%emt 0:00:07]} b4 {[%emt 0:09:07]} 13.
a5 {[%emt 0:07:13]} bxc3 {[%emt 0:10:35]} 14. bxc3 {[%emt 0:01:04]} Ne7 {
[%emt 0:00:51]} 15. Qa4+ {[%emt 0:09:10]} Qd7 {[%emt 0:01:53]} 16. Qc4 {
[%emt 0:02:17]} Ba7 {[%emt 0:01:25]} 17. h4 {[%emt 0:07:02]} g4 {[%emt 0:03:21]
} 18. Nh2 {[%emt 0:00:24]} Rg8 {[%emt 0:13:41]} 19. O-O {[%emt 0:02:06]} d5 {
[%emt 0:03:00]} 20. Qa4 {[%emt 0:05:15]} Nh5 {[%emt 0:11:59]} 21. Kh1 {[%emt 0:
01:35]} Nxg3+ {[%emt 0:05:25]} 22. fxg3 {[%emt 0:00:44]} Qxa4 {[%emt 0:00:03]}
23. Rxa4 {[%emt 0:00:05]} h5 {[%emt 0:00:04]} 24. Rf6 {[%emt 0:07:40]} Rb8 {
[%emt 0:02:20]} 25. Nd2 {[%emt 0:01:09]} Rb2 {[%emt 0:03:14]} 26. Nhf1 {
[%emt 0:00:20]} Rg6 {[%emt 0:00:11]} 27. Rxg6 {[%emt 0:00:50]} Nxg6 {[%emt 0:
00:03]} 28. Rb4 {[%emt 0:00:16]} Rxb4 {[%emt 0:01:16]} 29. cxb4 {[%emt 0:00:04]
} Ne7 {[%emt 0:05:30]} 30. Nb3 {[%emt 0:02:11]} Nc6 {[%emt 0:00:19]} 31. Nc5 {
[%emt 0:00:28]} Bxc5 {[%emt 0:00:15]} 32. bxc5 {[%emt 0:00:03]} Nxa5 {[%emt 0:
00:12]} 33. Ne3 {[%emt 0:00:08]} c6 {[%emt 0:00:33]} 0-1

[Event "Limburg Open 2022"]
[Site "Maastricht"]
[Date "2022.06.07"]
[Round "7.12"]
[White "Suvorov, Alexander"]
[Black "Baselmans, Luuk"]
[Result "1-0"]
[ECO "E11"]
[WhiteElo "2348"]
[BlackElo "2257"]
[PlyCount "67"]
[EventDate "2022.06.03"]
[EventType "swiss"]
[EventRounds "7"]
[EventCountry "NED"]
[SourceTitle "Limburg Open"]
[Source "Limburg Open"]
[SourceDate "2022.06.06"]
[SourceVersion "7"]
[SourceVersionDate "2022.06.06"]
[SourceQuality "1"]
[TimeControl "7200+15"]

1. d4 {[%emt 0:00:23]} e6 {[%emt 0:00:35]} 2. c4 {[%emt 0:00:59]} Nf6 {[%emt 0:
00:07]} 3. Nf3 {[%emt 0:00:08]} Bb4+ {[%emt 0:00:52]} 4. Bd2 {[%emt 0:00:11]}
a5 {[%emt 0:00:27]} 5. g3 {[%emt 0:00:12]} d6 {[%emt 0:03:09]} 6. Bg2 {[%emt 0:
00:31]} Nc6 {[%emt 0:00:30]} 7. O-O {[%emt 0:01:43]} Bxd2 {[%emt 0:00:49]} 8.
Qxd2 {[%emt 0:01:05]} O-O {[%emt 0:00:10]} 9. Nc3 {[%emt 0:00:48]} e5 {[%emt 0:
00:21]} 10. dxe5 {[%emt 0:05:35]} dxe5 {[%emt 0:00:12]} 11. Rfd1 {[%emt 0:05:
47]} Bg4 {[%emt 0:08:44]} 12. Qe3 {[%emt 0:10:09]} Qe7 {[%emt 0:01:02]} 13. Nd5
{[%emt 0:13:08]} Nxd5 {[%emt 0:00:21]} 14. cxd5 {[%emt 0:00:25]} Bxf3 {[%emt 0:
00:47]} 15. Qxf3 {[%emt 0:02:28]} Nd4 {[%emt 0:05:58]} 16. Qd3 {[%emt 0:04:22]}
Rfd8 {[%emt 0:05:53]} 17. e3 {[%emt 0:06:47]} Nc6 {[%emt 0:07:02]} 18. Qb3 {
[%emt 0:09:42]} Nb4 {[%emt 0:08:22]} 19. a3 {[%emt 0:00:45]} Na6 {[%emt 0:00:
07]} 20. Qxb7 {[%emt 0:01:04]} Qd6 {[%emt 0:00:59]} 21. Qc6 {[%emt 0:20:44]}
Rab8 {[%emt 0:01:12]} 22. Qc3 {[%emt 0:03:37]} a4 {[%emt 0:03:03]} 23. Rac1 {
[%emt 0:03:57]} Rb3 {[%emt 0:05:40]} 24. Qa5 {[%emt 0:02:17]} Rxb2 {[%emt 0:01:
22]} 25. Qxa4 {[%emt 0:01:04]} Ra2 {[%emt 0:03:12]} 26. Rc3 {[%emt 0:12:39]}
Qf6 {[%emt 0:08:00]} 27. Rc2 {[%emt 0:01:20]} Rxc2 {[%emt 0:01:32]} 28. Qxc2 {
[%emt 0:00:02]} Qd6 {[%emt 0:00:44]} 29. Qc3 {[%emt 0:01:43]} f5 {[%emt 0:01:
08]} 30. Rc1 {[%emt 0:01:53]} Kf8 {[%emt 0:02:54]} 31. Bf1 {[%emt 0:01:02]} Ra8
{[%emt 0:00:45]} 32. Qc6 {[%emt 0:03:55]} Ra7 {[%emt 0:01:27]} 33. Qa4 {
[%emt 0:02:14]} Qb6 {[%emt 0:05:38]} 34. Rc6 {[%emt 0:00:25]} 1-0

[Event "Limburg Open 2022"]
[Site "Maastricht"]
[Date "2022.06.07"]
[Round "7.13"]
[White "Kopylov, Daniel"]
[Black "Arndt, Stefan"]
[Result "1-0"]
[ECO "C95"]
[WhiteElo "2326"]
[BlackElo "2138"]
[PlyCount "61"]
[EventDate "2022.06.03"]
[EventType "swiss"]
[EventRounds "7"]
[EventCountry "NED"]
[SourceTitle "Limburg Open"]
[Source "Limburg Open"]
[SourceDate "2022.06.06"]
[SourceVersion "7"]
[SourceVersionDate "2022.06.06"]
[SourceQuality "1"]
[TimeControl "7200+15"]

1. e4 {[%emt 0:02:40]} e5 {[%emt 0:00:17]} 2. Nf3 {[%emt 0:00:27]} Nc6 {
[%emt 0:00:07]} 3. Bb5 {[%emt 0:00:30]} a6 {[%emt 0:00:14]} 4. Ba4 {[%emt 0:00:
18]} Nf6 {[%emt 0:00:28]} 5. O-O {[%emt 0:00:32]} Be7 {[%emt 0:00:14]} 6. Re1 {
[%emt 0:00:15]} b5 {[%emt 0:00:11]} 7. Bb3 {[%emt 0:00:09]} d6 {[%emt 0:00:09]}
8. c3 {[%emt 0:00:28]} O-O {[%emt 0:00:31]} 9. h3 {[%emt 0:00:07]} Nb8 {
[%emt 0:00:28]} 10. d4 {[%emt 0:01:25]} Nbd7 {[%emt 0:00:09]} 11. Nbd2 {
[%emt 0:00:14]} Bb7 {[%emt 0:00:24]} 12. Bc2 {[%emt 0:00:20]} c5 {[%emt 0:00:
29]} 13. d5 {[%emt 0:02:39]} c4 {[%emt 0:01:05]} 14. Nf1 {[%emt 0:03:23]} Qc7 {
[%emt 0:00:20]} 15. Ng3 {[%emt 0:00:12]} g6 {[%emt 0:00:13]} 16. Bh6 {[%emt 0:
03:37]} Rfb8 {[%emt 0:01:11]} 17. Qd2 {[%emt 0:00:29]} a5 {[%emt 0:00:11]} 18.
Nh4 {[%emt 0:05:57]} b4 {[%emt 0:05:11]} 19. Nhf5 {[%emt 0:03:47]} Bd8 {
[%emt 0:08:29]} 20. Ba4 {[%emt 0:12:31]} Nc5 {[%emt 0:05:01]} 21. Bf8 {[%emt 0:
02:43]} Nxa4 {[%emt 0:00:17]} 22. Bxd6 {[%emt 0:02:55]} Qxd6 {[%emt 0:19:04]}
23. Nxd6 {[%emt 0:00:37]} Ba6 {[%emt 0:00:04]} 24. Qh6 {[%emt 0:03:16]} Be7 {
[%emt 0:00:42]} 25. Ngf5 {[%emt 0:03:45]} Bf8 {[%emt 0:00:28]} 26. Qg5 {
[%emt 0:00:22]} Nd7 {[%emt 0:02:31]} 27. Re3 {[%emt 0:07:08]} f6 {[%emt 0:00:
41]} 28. Nh6+ {[%emt 0:01:53]} Bxh6 {[%emt 0:00:14]} 29. Qxh6 {[%emt 0:00:14]}
Ra7 {[%emt 0:02:57]} 30. Rg3 {[%emt 0:03:31]} Ndc5 {[%emt 0:02:50]} 31. h4 {
[%emt 0:02:10]} 1-0

[Event "Limburg Open 2022"]
[Site "Maastricht"]
[Date "2022.06.07"]
[Round "7.14"]
[White "Slagboom, Leandro"]
[Black "Van Foreest, Machteld"]
[Result "0-1"]
[ECO "A27"]
[WhiteElo "2098"]
[BlackElo "2295"]
[PlyCount "42"]
[EventDate "2022.06.03"]
[EventType "swiss"]
[EventRounds "7"]
[EventCountry "NED"]
[SourceTitle "Limburg Open"]
[Source "Limburg Open"]
[SourceDate "2022.06.06"]
[SourceVersion "7"]
[SourceVersionDate "2022.06.06"]
[SourceQuality "1"]
[TimeControl "7200+15"]

1. c4 {[%emt 0:10:05]} e5 {[%emt 0:05:41]} 2. Nc3 {[%emt 0:00:12]} f5 {[%emt 0:
00:04]} 3. Nf3 {[%emt 0:04:03]} Nc6 {[%emt 0:00:39]} 4. d4 {[%emt 0:02:39]} e4
{[%emt 0:15:58]} 5. d5 {[%emt 0:00:53]} exf3 {[%emt 0:01:07]} 6. dxc6 {[%emt 0:
00:06]} fxg2 {[%emt 0:03:24]} 7. cxd7+ {[%emt 0:00:19]} Qxd7 {[%emt 0:00:16]}
8. Bxg2 {[%emt 0:06:30]} Qxd1+ {[%emt 0:00:06]} 9. Kxd1 {[%emt 0:00:27]} c6 {
[%emt 0:00:04]} 10. b3 {[%emt 0:04:45]} Be6 {[%emt 0:03:48]} 11. e3 {[%emt 0:
06:06]} O-O-O+ {[%emt 0:01:10]} 12. Ke2 {[%emt 0:00:19]} Nf6 {[%emt 0:05:24]}
13. Bb2 {[%emt 0:01:03]} Bd6 {[%emt 0:00:58]} 14. f4 {[%emt 0:16:36]} Bf7 {
[%emt 0:04:11]} 15. Bh3 {[%emt 0:21:55]} Bh5+ {[%emt 0:08:36]} 16. Kf2 {
[%emt 0:07:03]} g6 {[%emt 0:06:46]} 17. Kg3 {[%emt 0:25:54]} Rhe8 {[%emt 0:04:
39]} 18. Rae1 {[%emt 0:06:34]} Bb4 {[%emt 0:01:32]} 19. Kh4 {[%emt 0:02:16]}
Rd3 {[%emt 0:06:01]} 20. e4 {[%emt 0:07:44]} Be7 {[%emt 0:03:06]} 21. exf5 {
[%emt 0:03:21]} Nd7+ {[%emt 0:00:07]} 0-1

[Event "Limburg Open 2022 - Match"]
[Site "Maastricht"]
[Date "2022.06.07"]
[Round "4"]
[White "Shirov, Alexei"]
[Black "Van Foreest, Jorden"]
[Result "1/2-1/2"]
[ECO "C67"]
[WhiteElo "2681"]
[BlackElo "2702"]
[PlyCount "50"]
[EventDate "2022.06.03"]
[EventType "match"]
[EventRounds "4"]
[EventCountry "NED"]
[SourceTitle "Limburg Open"]
[Source "Limburg Open"]
[SourceDate "2022.06.06"]
[SourceVersion "7"]
[SourceVersionDate "2022.06.06"]
[SourceQuality "1"]
[TimeControl "7200+15"]

1. e4 {[%emt 0:00:04]} e5 {[%emt 0:00:08]} 2. Nf3 {[%emt 0:00:07]} Nc6 {
[%emt 0:00:05]} 3. Bb5 {[%emt 0:00:07]} Nf6 {[%emt 0:00:05]} 4. O-O {[%emt 0:
10:16]} Nxe4 {[%emt 0:00:14]} 5. d4 {[%emt 0:00:12]} Nd6 {[%emt 0:00:07]} 6.
Bxc6 {[%emt 0:01:23]} dxc6 {[%emt 0:00:08]} 7. dxe5 {[%emt 0:00:03]} Nf5 {
[%emt 0:00:07]} 8. Qxd8+ {[%emt 0:00:05]} Kxd8 {[%emt 0:00:07]} 9. h3 {[%emt 0:
00:10]} Ke8 {[%emt 0:00:03]} 10. Nc3 {[%emt 0:00:42]} h5 {[%emt 0:00:24]} 11.
Bf4 {[%emt 0:03:13]} Be7 {[%emt 0:00:15]} 12. Rad1 {[%emt 0:01:43]} Nh4 {
[%emt 0:00:07]} 13. Nd4 {[%emt 0:08:11]} Ng6 {[%emt 0:00:13]} 14. Bh2 {[%emt 0:
03:05]} Nf8 {[%emt 0:00:11]} 15. f4 {[%emt 0:01:58]} Ne6 {[%emt 0:00:09]} 16.
Nce2 {[%emt 0:03:54]} Nxd4 {[%emt 0:05:39]} 17. Nxd4 {[%emt 0:00:06]} g6 {
[%emt 0:04:43]} 18. f5 {[%emt 0:03:41]} Bxf5 {[%emt 0:00:10]} 19. Nxf5 {
[%emt 0:00:08]} gxf5 {[%emt 0:00:03]} 20. Rxf5 {[%emt 0:01:09]} Rd8 {[%emt 0:
00:05]} 21. Rxd8+ {[%emt 0:02:54]} Bxd8 {[%emt 0:00:11]} 22. Kf2 {[%emt 0:07:
17]} Ke7 {[%emt 0:00:15]} 23. Rf6 {[%emt 0:00:41]} Ke8 {[%emt 0:00:34]} 24. Rf5
{[%emt 0:02:33]} Ke7 {[%emt 0:00:13]} 25. Rf6 {[%emt 0:00:07]} Ke8 {[%emt 0:00:
03]} 1/2-1/2